fUST/lending_fUST_20240912
["ID","MTS","AMOUNT","RATE_DAILY","PERIOD"]
[337848949,1726152644739,-500.0,0.00016438,2]
[337848951,1726152644748,-500.0,0.00016438,2]
[337848953,1726152644758,-500.0,0.00016438,2]
[337848955,1726152644767,-943.84,0.00016438,2]
[337848957,1726152644777,-500.0,0.00016438,2]
[337848959,1726152644787,-200.0,0.00016438,2]
[337848961,1726152644796,-500.0,0.00016438,2]
[337848963,1726152644806,-500.0,0.00016438,2]
[337848965,1726152644816,-13530.79,0.00016438,2]
[337848967,1726152644825,-500.0,0.00016438,2]
[337848969,1726152644834,-1213.97,0.00016438,2]
[337848971,1726152644844,-500.0,0.00016438,2]
[337848973,1726152644853,-500.0,0.00016438,2]
[337848975,1726152644863,-500.0,0.00016438,2]
[337848977,1726152644872,-500.0,0.00016438,2]
[337848979,1726152644882,-351.28737907,0.00016438,2]
[337849010,1726152645117,-148.71262093,0.00016438,2]
[337849012,1726152645127,-531.31158602,0.00016438,2]
[337849014,1726152645140,-9106.62841398,0.00016438,2]
[337849017,1726152645154,-4184.03,0.00016438,2]
[337849019,1726152645168,-500.0,0.00016438,2]
[337849022,1726152645183,-500.0,0.00016438,2]
[337849024,1726152645197,-761.28,0.00016438,2]
[337849027,1726152645209,-530.66,0.00016438,2]
[337849029,1726152645220,-500.0,0.00016438,2]
[337849031,1726152645234,-500.0,0.00016438,2]
[337849034,1726152645247,-500.0,0.00016438,2]
[337849036,1726152645260,-503.79180244,0.00016438,2]
[337849039,1726152645273,-500.0,0.00016438,2]
[337849041,1726152645287,-1075.94,0.00016438,2]
[337849043,1726152645299,-500.0,0.00016438,2]
[337849046,1726152645313,-5802.07,0.00016438,2]
[337849048,1726152645326,-505.42851938,0.00016438,2]
[337849051,1726152645339,-500.0,0.00016438,2]
[337849053,1726152645351,-500.0,0.00016438,2]
[337849055,1726152645363,-500.0,0.00016438,2]
[337849058,1726152645374,-500.0,0.00016438,2]
[337849060,1726152645389,-1860.89,0.00016438,2]
[337849063,1726152645402,-505.73279037,0.00016438,2]
[337849065,1726152645414,-500.0,0.00016438,2]
[337849067,1726152645428,-500.0,0.00016438,2]
[337849070,1726152645439,-13188.3,0.00016438,2]
[337849072,1726152645449,-500.0,0.00016438,2]
[337849074,1726152645462,-502.3694592,0.00016438,2]
[337849076,1726152645474,-500.0,0.00016438,2]
[337849079,1726152645486,-500.0,0.00016438,2]
[337849081,1726152645499,-500.0,0.00016438,2]
[337849083,1726152645511,-500.0,0.00016438,2]
[337849086,1726152645525,-500.0,0.00016438,2]
[337849088,1726152645538,-393.71417716,0.00016438,2]
[337849090,1726152645551,-958.37,0.00016438,2]
[337849093,1726152645564,-500.0,0.00016438,2]
[337849095,1726152645576,-896.82,0.00016438,2]
[337849097,1726152645587,-500.0,0.00016438,2]
[337849099,1726152645598,-543.03286653,0.00016438,2]
[337849101,1726152645610,-500.0,0.00016438,2]
[337849104,1726152645623,-500.0,0.00016438,2]
[337849106,1726152645638,-500.0,0.00016438,2]
[337849108,1726152645651,-500.0,0.00016438,2]
[337849111,1726152645661,-500.0,0.00016438,2]
[337849113,1726152645672,-500.0,0.00016438,2]
[337849115,1726152645685,-500.0,0.00016473,2]
[337849117,1726152645697,-500.49858895,0.00016473,2]
[337849118,1726152645710,-500.0,0.00016473,2]
[337849119,1726152645721,-500.0,0.00016473,2]
[337849120,1726152645732,-198.80719418,0.00016473,2]
[337849121,1726152645743,-501.98218195,0.00016473,2]
[337849122,1726152645754,-500.0,0.00016473,2]
[337849123,1726152645765,-500.0,0.00016473,2]
[337849124,1726152645780,-165.2675693,0.00016473,2]
[337849125,1726152645791,-549.94975505,0.00016473,2]
[337849126,1726152645802,-500.0,0.00016473,2]
[337849127,1726152645813,-500.0,0.00016473,2]
[337849128,1726152645825,-187.27462075,0.00016473,2]
[337849129,1726152645838,-200.15239148,0.000165,2]
[337849130,1726152645849,-5461.94764664,0.00016506,2]
[337849133,1726152645859,-500.0,0.00016534,7]
[337849134,1726152645871,-500.0,0.00016534,7]
[337849137,1726152645882,-474.96,0.00016534,7]
[337849139,1726152645894,-500.0,0.00016534,7]
[337849141,1726152645906,-500.0,0.00016534,7]
[337849144,1726152645918,-500.0,0.00016534,7]
[337849146,1726152645930,-500.0,0.00016534,7]
[337849148,1726152645942,-500.0,0.00016534,7]
[337849150,1726152645955,-500.0,0.00016534,7]
[337849152,1726152645966,-500.0,0.00016534,7]
[337849155,1726152645978,-500.0,0.00016534,7]
[337849157,1726152645990,-500.0,0.00016534,7]
[337849159,1726152646003,-500.0,0.00016534,7]
[337849161,1726152646014,-426.75,0.00016534,7]
[337849164,1726152646026,-327.0646134,0.000166,2]
[337849167,1726152646036,-306.0,0.000166,2]
[337849171,1726152646049,-150.0,0.0001661,2]
[337849174,1726152646061,-524.0,0.0001661,2]
[337849176,1726152646072,-150.543,0.0001661,2]
[337849179,1726152646085,-150.512,0.0001661,2]
[337849181,1726152646097,-151.957,0.0001661,2]
[337849183,1726152646108,-150.0,0.00016637,2]
[337849185,1726152646119,-677.77148489,0.00016667,2]
[337849188,1726152646131,-5522.17148637,0.00016691,2]
[337849190,1726152646144,-28990.69213,0.00016691,2]
[337849192,1726152646156,-500.0,0.00016692,2]
[337849195,1726152646168,-500.0,0.00016692,2]
[337849197,1726152646179,-500.0,0.00016692,2]
[337849199,1726152646190,-417.74488058,0.00016692,2]
[337849201,1726152646202,-410.2544176,0.000167,2]
[337849204,1726152646213,-500.0,0.00016701,2]
[337849206,1726152646224,-27610.8574318,0.00016702,2]
[337849208,1726152646235,-500.0,0.00016711,2]
[337849210,1726152646246,-500.0,0.00016711,2]
[337849212,1726152646258,-177.84027643,0.00016711,2]
[337849214,1726152646269,-9342.0714024,0.00016712,3]
[337849217,1726152646281,-500.0,0.00016712,2]
[337849219,1726152646292,-500.0,0.00016712,2]
[337849221,1726152646302,-740.74,0.00016712,2]
[337849223,1726152646313,-500.0,0.00016712,2]
[337849225,1726152646325,-500.0,0.00016712,2]
[337849227,1726152646337,-500.0,0.00016712,2]
[337849230,1726152646348,-500.0,0.00016712,2]
[337849232,1726152646360,-500.0,0.00016712,2]
[337849234,1726152646371,-500.0,0.00016712,2]
[337849236,1726152646383,-500.0,0.00016712,2]
[337849239,1726152646395,-500.0,0.00016712,2]
[337849241,1726152646406,-500.0,0.00016712,2]
[337849243,1726152646417,-500.0,0.00016712,2]
[337849245,1726152646429,-782.0,0.00016712,2]
[337849247,1726152646440,-500.0,0.00016712,2]
[337849250,1726152646452,-500.0,0.00016712,2]
[337849252,1726152646463,-500.0,0.00016712,2]
[337849254,1726152646474,-500.0,0.00016712,2]
[337849256,1726152646485,-253.14116381,0.00016712,2]
[337849258,1726152646497,-500.0,0.00016712,2]
[337849261,1726152646508,-500.0,0.00016712,2]
[337849263,1726152646519,-500.0,0.00016712,2]
[337849265,1726152646531,-500.0,0.00016712,2]
[337849267,1726152646542,-500.0,0.00016712,2]
[337849270,1726152646555,-500.0,0.00016712,2]
[337849272,1726152646566,-500.0,0.00016712,2]
[337849274,1726152646577,-500.0,0.00016712,2]
[337849276,1726152646591,-500.0,0.00016712,2]
[337849278,1726152646602,-500.0,0.00016712,2]
[337849281,1726152646614,-500.0,0.00016712,2]
[337849283,1726152646625,-514.40433034,0.00016712,2]
[337849285,1726152646637,-500.0,0.00016712,2]
[337849287,1726152646649,-500.0,0.00016712,2]
[337849289,1726152646661,-500.0,0.00016712,2]
[337849292,1726152646672,-500.0,0.00016712,2]
[337849294,1726152646683,-500.0,0.00016712,2]
[337849296,1726152646696,-327.48408718,0.00016712,2]
[337849298,1726152646706,-502.54879552,0.00016712,2]
[337849300,1726152646717,-515.09531025,0.00016712,2]
[337849302,1726152646726,-533.62,0.00016712,2]
[337849304,1726152646736,-500.0,0.00016712,2]
[337849306,1726152646746,-500.0,0.00016712,2]
[337849308,1726152646757,-500.0,0.00016712,2]
[337849310,1726152646767,-500.0,0.00016712,2]
[337849312,1726152646780,-500.0,0.00016712,2]
[337849314,1726152646791,-500.0,0.00016712,2]
[337849316,1726152646808,-500.0,0.00016712,2]
[337849318,1726152646818,-513.67154487,0.00016712,2]
[337849320,1726152646827,-500.0,0.00016712,2]
[337849322,1726152646838,-500.0,0.00016712,2]
[337849324,1726152646847,-504.4238808,0.00016712,2]
[337849326,1726152646857,-187.36790211,0.00016712,2]
[337849328,1726152646867,-635.24487891,0.00016712,2]
[337849330,1726152646876,-490.06,0.00016712,2]
[337849332,1726152646887,-500.0,0.00016712,2]
[337849334,1726152646896,-500.0,0.00016712,2]
[337849336,1726152646905,-500.0,0.00016712,2]
[337849338,1726152646915,-500.0,0.00016712,2]
[337849340,1726152646926,-500.0,0.00016712,2]
[337849342,1726152646937,-500.0,0.00016712,2]
[337849344,1726152646947,-500.0,0.00016712,2]
[337849346,1726152646957,-500.0,0.00016712,2]
[337849348,1726152646967,-500.0,0.00016712,2]
[337849350,1726152646977,-773.66,0.00016712,2]
[337849352,1726152646986,-500.0,0.00016712,2]
[337849381,1726152647255,-500.0,0.00016712,2]
[337849384,1726152647275,-500.0,0.00016712,2]
[337849387,1726152647291,-500.0,0.00016712,2]
[337849389,1726152647301,-671.85,0.00016712,2]
[337849391,1726152647311,-493.75114129,0.00016712,2]
[337849393,1726152647321,-500.0,0.00016712,2]
[337849395,1726152647331,-500.0,0.00016712,2]
[337849397,1726152647341,-500.0,0.00016712,2]
[337849399,1726152647350,-500.0,0.00016712,2]
[337849401,1726152647359,-500.0,0.00016712,2]
[337849403,1726152647369,-500.0,0.00016712,2]
[337849405,1726152647380,-500.0,0.00016712,2]
[337849407,1726152647389,-500.0,0.00016712,2]
[337849409,1726152647398,-500.0,0.00016712,2]
[337849411,1726152647407,-581.4,0.00016712,2]
[337849413,1726152647418,-500.0,0.00016712,2]
[337849415,1726152647428,-500.0,0.00016712,2]
[337849417,1726152647437,-500.0,0.00016712,2]
[337849419,1726152647447,-500.0,0.00016712,2]
[337849421,1726152647458,-500.0,0.00016712,2]
[337849423,1726152647469,-500.0,0.00016712,2]
[337849426,1726152647479,-500.0,0.00016712,2]
[337849427,1726152647488,-500.0,0.00016712,2]
[337849429,1726152647498,-737.7,0.00016712,2]
[337849431,1726152647507,-500.0,0.00016712,2]
[337849433,1726152647517,-500.0,0.00016712,2]
[337849435,1726152647527,-500.0,0.00016712,2]
[337849437,1726152647545,-528.67,0.00016712,2]
[337849439,1726152647555,-500.0,0.00016712,2]
[337849441,1726152647564,-500.0,0.00016712,2]
[337849443,1726152647573,-500.0,0.00016712,2]
[337849445,1726152647583,-500.0,0.00016712,2]
[337849448,1726152647594,-500.0,0.00016712,2]
[337849450,1726152647604,-500.0,0.00016712,2]
[337849452,1726152647616,-500.0,0.00016712,2]
[337849454,1726152647626,-711.78,0.00016712,2]
[337849456,1726152647637,-608.41,0.00016712,2]
[337849458,1726152647648,-500.0,0.00016712,2]
[337849460,1726152647657,-500.0,0.00016712,2]
[337849462,1726152647667,-500.0,0.00016712,2]
[337849464,1726152647678,-534.35,0.00016712,2]
[337849466,1726152647690,-500.0,0.00016712,2]
[337849468,1726152647700,-500.0,0.00016712,2]
[337849470,1726152647710,-798.84,0.00016712,2]
[337849472,1726152647720,-500.0,0.00016712,2]
[337849474,1726152647730,-500.0,0.00016712,2]
[337849476,1726152647739,-500.0,0.00016712,2]
[337849478,1726152647748,-595.98,0.00016712,2]
[337849479,1726152647758,-500.0,0.00016712,2]
[337849482,1726152647767,-500.0,0.00016712,2]
[337849484,1726152647778,-181.5,0.00016712,2]
[337849486,1726152647788,-604.05,0.00016712,2]
[337849488,1726152647797,-500.0,0.00016712,2]
[337849490,1726152647806,-808.06,0.00016712,2]
[337849491,1726152647815,-646.31223111,0.00016712,2]
[337849493,1726152647824,-500.0,0.00016712,2]
[337849495,1726152647833,-500.0,0.00016712,2]
[337849497,1726152647842,-502.75,0.00016712,2]
[337849499,1726152647852,-538.11,0.00016712,2]
[337849501,1726152647861,-500.0,0.00016712,2]
[337849503,1726152647870,-155.11,0.00016712,2]
[337849505,1726152647879,-500.0,0.00016712,2]
[337849507,1726152647889,-500.0,0.00016712,2]
[337849509,1726152647898,-500.0,0.00016712,2]
[337849511,1726152647908,-500.0,0.00016712,2]
[337849513,1726152647917,-529.70317225,0.00016712,2]
[337849515,1726152647928,-530.73057864,0.00016712,2]
[337849518,1726152647938,-500.0,0.00016712,2]
[337849520,1726152647948,-500.0,0.00016712,2]
[337849522,1726152647957,-500.0,0.00016712,2]
[337849523,1726152647966,-500.0,0.00016712,2]
[337849525,1726152647976,-579.39928898,0.00016712,2]
[337849526,1726152647985,-500.0,0.00016712,2]
[337849527,1726152647995,-500.0,0.00016712,2]
[337849528,1726152648006,-500.0,0.00016712,2]
[337849529,1726152648015,-632.6019476,0.00016712,2]
[337849530,1726152648026,-755.91,0.00016712,2]
[337849531,1726152648036,-970.24,0.00016712,2]
[337849532,1726152648046,-956.3,0.00016712,2]
[337849533,1726152648056,-500.0,0.00016712,2]
[337849534,1726152648066,-500.0,0.00016712,2]
[337849535,1726152648077,-500.0,0.00016712,2]
[337849536,1726152648086,-500.0,0.00016712,2]
[337849537,1726152648096,-500.0,0.00016712,2]
[337849538,1726152648106,-500.0,0.00016712,2]
[337849539,1726152648117,-500.0,0.00016712,2]
[337849540,1726152648127,-500.0,0.00016712,2]
[337849541,1726152648136,-500.0,0.00016712,2]
[337849542,1726152648146,-631.8683526,0.00016712,2]
[337849543,1726152648155,-1295.07,0.00016712,2]
[337849544,1726152648165,-500.0,0.00016712,2]
[337849545,1726152648175,-500.0,0.00016712,2]
[337849546,1726152648185,-648.78193734,0.00016712,2]
[337849547,1726152648194,-895.26,0.00016712,2]
[337849548,1726152648203,-551.84,0.00016712,2]
[337849549,1726152648213,-500.0,0.00016712,2]
[337849550,1726152648222,-500.0,0.00016712,2]
[337849551,1726152648231,-500.0,0.00016712,2]
[337849552,1726152648240,-1096.68,0.00016712,2]
[337849553,1726152648249,-500.0,0.00016712,2]
[337849554,1726152648258,-782.51,0.00016712,2]
[337849555,1726152648268,-500.0,0.00016712,2]
[337849556,1726152648277,-500.0,0.00016712,2]
[337849557,1726152648286,-500.0,0.00016712,2]
[337849558,1726152648295,-500.0,0.00016712,2]
[337849559,1726152648304,-500.0,0.00016712,2]
[337849560,1726152648313,-500.0,0.00016712,2]
[337849561,1726152648322,-500.0,0.00016712,2]
[337849562,1726152648331,-500.0,0.00016712,2]
[337849563,1726152648340,-500.0,0.00016712,2]
[337849564,1726152648349,-500.0,0.00016712,2]
[337849565,1726152648358,-500.0,0.00016712,2]
[337849566,1726152648367,-548.50318183,0.00016712,2]
[337849567,1726152648377,-8503.83,0.00016712,2]
[337849568,1726152648387,-500.0,0.00016712,2]
[337849569,1726152648398,-1068.46,0.00016712,2]
[337849570,1726152648407,-500.0,0.00016712,2]
[337849571,1726152648416,-500.0,0.00016712,2]
[337849573,1726152648425,-500.0,0.00016712,2]
[337849574,1726152648435,-517.46,0.00016712,2]
[337849575,1726152648444,-500.0,0.00016712,2]
[337849577,1726152648453,-500.0,0.00016712,2]
[337849579,1726152648462,-463.45481281,0.00016712,2]
[337849581,1726152648472,-846.21,0.00016712,2]
[337849583,1726152648483,-822.57,0.00016712,2]
[337849585,1726152648493,-663.81,0.00016712,2]
[337849587,1726152648502,-500.0,0.00016712,2]
[337849589,1726152648512,-660.34,0.00016712,2]
[337849591,1726152648521,-500.0,0.00016712,2]
[337849593,1726152648532,-500.0,0.00016712,2]
[337849595,1726152648541,-500.0,0.00016712,2]
[337849597,1726152648550,-576.83411579,0.00016712,2]
[337849599,1726152648560,-500.0,0.00016712,2]
[337849601,1726152648569,-500.0,0.00016712,2]
[337849602,1726152648580,-500.0,0.00016712,2]
[337849603,1726152648592,-884.1,0.00016712,2]
[337849604,1726152648601,-500.0,0.00016712,2]
[337849605,1726152648610,-500.0,0.00016712,2]
[337849606,1726152648621,-845.77,0.00016712,2]
[337849607,1726152648632,-500.0,0.00016712,2]
[337849608,1726152648642,-500.0,0.00016712,2]
[337849609,1726152648651,-546.3,0.00016712,2]
[337849610,1726152648661,-500.0,0.00016712,2]
[337849611,1726152648671,-500.0,0.00016712,2]
[337849612,1726152648681,-500.0,0.00016712,2]
[337849613,1726152648693,-500.0,0.00016712,2]
[337849614,1726152648702,-856.04,0.00016712,2]
[337849615,1726152648711,-564.58,0.00016712,2]
[337849616,1726152648721,-500.0,0.00016712,2]
[337849617,1726152648731,-500.0,0.00016712,2]
[337849618,1726152648740,-500.0,0.00016712,2]
[337849619,1726152648750,-500.0,0.00016712,2]
[337849620,1726152648761,-784.21,0.00016712,2]
[337849621,1726152648771,-941.13,0.00016712,2]
[337849622,1726152648781,-500.0,0.00016712,2]
[337849623,1726152648791,-500.0,0.00016712,2]
[337849624,1726152648801,-1033.3,0.00016712,2]
[337849625,1726152648811,-500.0,0.00016712,2]
[337849626,1726152648821,-750.6,0.00016712,2]
[337849627,1726152648830,-500.0,0.00016712,2]
[337849628,1726152648840,-500.0,0.00016712,2]
[337849629,1726152648850,-546.62,0.00016712,2]
[337849630,1726152648859,-770.92,0.00016712,2]
[337849631,1726152648868,-11308.38,0.00016712,2]
[337849633,1726152648877,-500.0,0.00016712,2]
[337849634,1726152648886,-500.0,0.00016712,2]
[337849636,1726152648895,-500.0,0.00016712,2]
[337849638,1726152648905,-500.0,0.00016712,2]
[337849639,1726152648914,-500.0,0.00016712,2]
[337849640,1726152648923,-500.0,0.00016712,2]
[337849642,1726152648933,-500.0,0.00016712,2]
[337849644,1726152648943,-500.0,0.00016712,2]
[337849646,1726152648953,-171.74745047,0.00016712,2]
[337849648,1726152648962,-500.0,0.00016712,2]
[337849650,1726152648971,-500.0,0.00016712,2]
[337849652,1726152648981,-776.61,0.00016712,2]
[337849654,1726152648990,-500.0,0.00016712,2]
[337849656,1726152648999,-500.0,0.00016712,2]
[337849658,1726152649008,-8409.05,0.00016712,2]
[337849659,1726152649018,-500.0,0.00016712,2]
[337849661,1726152649029,-506.97,0.00016712,2]
[337849664,1726152649040,-462.78474774,0.00016712,2]
[337849666,1726152649050,-500.0,0.00016712,2]
[337849668,1726152649060,-840.76,0.00016712,2]
[337849670,1726152649069,-500.0,0.00016712,2]
[337849672,1726152649079,-500.0,0.00016712,2]
[337849674,1726152649088,-500.0,0.00016712,2]
[337849676,1726152649098,-2213.7,0.00016712,2]
[337849678,1726152649109,-605.9531014,0.00016712,2]
[337849680,1726152649119,-621.07,0.00016712,2]
[337849682,1726152649129,-500.0,0.00016712,2]
[337849685,1726152649139,-500.0,0.00016712,2]
[337849687,1726152649149,-326.35,0.00016712,2]
[337849689,1726152649158,-755.1,0.00016712,2]
[337849691,1726152649167,-685.57,0.00016712,2]
[337849693,1726152649176,-500.0,0.00016712,2]
[337849695,1726152649186,-500.0,0.00016712,2]
[337849697,1726152649195,-500.0,0.00016712,2]
[337849699,1726152649205,-500.0,0.00016712,2]
[337849700,1726152649215,-643.33,0.00016712,2]
[337849701,1726152649225,-500.0,0.00016712,2]
[337849702,1726152649234,-500.0,0.00016712,2]
[337849704,1726152649244,-826.56,0.00016712,2]
[337849705,1726152649254,-500.0,0.00016712,2]
[337849706,1726152649264,-265.33,0.00016712,2]
[337849707,1726152649275,-500.0,0.00016712,2]
[337849708,1726152649284,-500.0,0.00016712,2]
[337849709,1726152649295,-500.0,0.00016712,2]
[337849710,1726152649304,-500.0,0.00016712,2]
[337849711,1726152649314,-500.0,0.00016712,2]
[337849712,1726152649323,-869.97,0.00016712,2]
[337849713,1726152649332,-547.81755645,0.00016712,2]
[337849714,1726152649341,-500.0,0.00016712,2]
[337849715,1726152649350,-500.0,0.00016712,2]
[337849716,1726152649359,-850.38,0.00016712,2]
[337849717,1726152649368,-500.0,0.00016712,2]
[337849718,1726152649379,-709.22,0.00016712,2]
[337849719,1726152649388,-1393.83,0.00016712,2]
[337849720,1726152649397,-219.65621999,0.00016712,2]
[337849721,1726152649408,-500.0,0.00016712,2]
[337849722,1726152649417,-718.26,0.00016712,2]
[337849723,1726152649426,-500.0,0.00016712,2]
[337849724,1726152649435,-833.96,0.00016712,2]
[337849725,1726152649444,-789.17,0.00016712,2]
[337849726,1726152649454,-500.0,0.00016712,2]
[337849727,1726152649463,-563.01,0.00016712,2]
[337849728,1726152649473,-500.0,0.00016712,2]
[337849729,1726152649482,-500.0,0.00016712,2]
[337849730,1726152649492,-651.66,0.00016712,2]
[337849731,1726152649501,-500.0,0.00016712,2]
[337849732,1726152649511,-500.0,0.00016712,2]
[337849733,1726152649520,-500.0,0.00016712,2]
[337849734,1726152649535,-500.0,0.00016712,2]
[337849735,1726152649545,-505.51201439,0.00016712,2]
[337849736,1726152649556,-943.84,0.00016712,2]
[337849737,1726152649565,-500.0,0.00016712,2]
[337849738,1726152649575,-200.0,0.00016712,2]
[337849739,1726152649586,-500.0,0.00016712,2]
[337849740,1726152649595,-349.20532625,0.00016712,2]
[337849741,1726152649717,167.283852,0.0001571,2]
[337849767,1726152850507,47346.38265191,0.000157,2]
[337849768,1726152885700,500.0,0.00013699,2]
[337849772,1726153439251,500.0,0.00013699,2]
[337849773,1726153544107,-400.0,0.00016137,2]
[337849774,1726153544129,-197.82336461,0.00016138,2]
[337849775,1726153544150,-658.61408598,0.00016238,2]
[337849776,1726153544178,-141.38591402,0.00016238,2]
[337849777,1726153544198,-800.0,0.00016238,2]
[337849778,1726153544220,-163.33333366,0.00016238,2]
[337849779,1726153544243,-21.3548576,0.00016337,2]
[337849780,1726153631101,-1180.34781011,0.00016337,2]
[337849781,1726153632091,-521.52958905,0.00016337,2]
[337849782,1726153645114,-800.0,0.00016338,2]
[337849783,1726153645138,-982.47950622,0.00016338,2]
[337849784,1726153645160,-482.39810484,0.00016338,2]
[337849785,1726153650106,-517.60189516,0.00016338,2]
[337849786,1726153650129,-300.0,0.00016427,2]
[337849787,1726153650152,-300.0,0.00016427,2]
[337849788,1726153650173,-1000.0,0.00016428,2]
[337849789,1726153650195,-3940.80862173,0.00016428,2]
[337849790,1726153681532,165.899936,0.00015583,2]
[337849813,1726153832560,-300.0,0.00016426,2]
[337849815,1726153832571,-500.0,0.00016427,2]
[337849817,1726153832583,-349.13556855,0.00016427,2]
[337849819,1726153832596,-150.86443145,0.00016427,2]
[337849822,1726153832607,-500.0,0.00016427,2]
[337849823,1726153832617,-85.38671855,0.00016427,2]
[337849843,1726153838667,-338.59778102,0.00016427,2]
[337849844,1726153838679,-21.71185724,0.00016427,2]
[337849845,1726153838689,-193.28013353,0.00016428,2]
[337849846,1726153838698,-500.0,0.00016428,2]
[337849847,1726153838709,-335.63004782,0.00016428,2]
[337849849,1726153838718,-12512.5200691,0.00016428,2]
[337849851,1726153838730,-879.7918855,0.00016428,2]
[337849853,1726153838740,-4890.0081145,0.00016428,2]
[337849944,1726153840706,-3353.96955176,0.00016428,2]
[337850277,1726153844144,-139.60416118,0.00016428,2]
[337851230,1726153856831,521.39226243,0.00015,2]
[337851566,1726153900966,217.635051,0.00015429,2]
[337851569,1726153927754,183.519258,0.00014656,2]
[337851570,1726153958236,500.0,0.00013699,2]
[337851575,1726154074808,2425.2296491,0.00015422,2]
[337851581,1726154485258,500.0,0.00013699,2]
[337851582,1726154617265,5461.94764664,0.00015896,2]
[337851586,1726154735120,-167.15689732,0.0001623,2]
[337851587,1726154735143,-167.15689732,0.00016319,2]
[337851588,1726154735169,-582.83525371,0.00016328,2]
[337851589,1726154735405,-129.64362293,0.00016331,2]
[337851590,1726154826103,-1220.7985247,0.00016318,2]
[337851592,1726154843107,-562.20135267,0.00016318,2]
[337851593,1726154847091,-1252.27766875,0.00016318,2]
[337851594,1726154847115,-472.0584337,0.00016328,2]
[337851595,1726154847138,-472.0584337,0.00016331,2]
[337851596,1726154847161,-472.0584337,0.00016333,2]
[337851597,1726154847183,-282.70702919,0.00016336,2]
[337851598,1726154848106,-189.35140451,0.00016336,2]
[337851599,1726154848130,-2107.77935116,0.00016338,2]
[337851600,1726154848153,-472.0584337,0.00016338,2]
[337851601,1726154848175,-1490.48,0.00016394,2]
[337851602,1726154848202,-249.47425997,0.00016415,2]
[337851611,1726154990261,500.0,0.00013699,2]
[337851654,1726155032670,-300.0,0.00016417,2]
[337851656,1726155032681,-300.0,0.00016417,2]
[337851658,1726155032690,-34.31379464,0.00016418,2]
[337851660,1726155032702,-1514.07434022,0.00016418,2]
[337851662,1726155032712,-6216.53565978,0.00016418,2]
[337851688,1726155032979,175.892296,0.00015539,2]
[337851690,1726155033203,175.892296,0.00015655,2]
[337851691,1726155033437,175.892296,0.00015771,2]
[337851692,1726155033666,175.892296,0.00015886,2]
[337851693,1726155036250,1000.0,0.00017,17]
[337851706,1726155038625,-175.892296,0.00016002,2]
[337851708,1726155038635,-175.892296,0.00016118,2]
[337851710,1726155038645,-175.892296,0.00016233,2]
[337851712,1726155038657,-175.892296,0.00016349,2]
[337851714,1726155038667,-769.58682838,0.00016418,2]
[337851715,1726155038676,-1604.179422,0.00016418,2]
[337851716,1726155038685,-823.02526016,0.0001642,2]
[337851719,1726155038707,-923.50536188,0.0001642,2]
[337851721,1726155038716,-401.0448555,0.0001642,2]
[337851723,1726155038726,-15718.7755984,0.00016428,2]
[337851725,1726155038742,-3609.4036995,0.00016428,2]
[337851727,1726155038758,-1823.22905073,0.00016428,2]